bitfinex-derivatives/quotes_ETHF0:USTF0_20240928
["timestamp","ask_amount","ask_price","bid_price","bid_amount"]
[1727560496033,3.58207,2671.2,2671.1,0.37428]
[1727560498728,0.37427,2671.2,2671.1,0.37428]
[1727560498923,3.58207,2671.2,2671.1,0.37428]
[1727560499122,0.37429,2671.1,2671.0,0.37429]
[1727560499324,3.31220193,2671.1,2671.0,0.37429]
[1727560501521,2.93791193,2671.1,2670.9,0.3706]
[1727560502029,0.37429,2671.0,2670.9,0.7449]
[1727560502423,3.31219193,2671.1,2671.0,0.37429]
[1727560503223,0.37429,2671.0,2670.9,0.7449]
[1727560503433,3.31220193,2671.1,2671.0,0.37429]
[1727560503937,0.37429,2671.1,2671.0,0.37429]
[1727560505632,3.2078,2671.2,2670.9,0.3706]
[1727560505934,3.58208,2671.2,2671.0,0.37428]
[1727560507025,6.51999193,2671.2,2671.0,0.37428]
[1727560507429,6.51999193,2671.2,2671.1,0.37428]
[1727560507827,6.51999193,2671.2,2671.0,0.37428]
[1727560508025,0.37428,2671.2,2671.0,0.37428]
[1727560508229,0.37428,2671.1,2671.0,0.37428]
[1727560510931,3.31219193,2671.1,2671.0,0.37428]
[1727560516729,2.93791193,2671.1,2671.0,0.37428]
[1727560517837,3.31219193,2671.1,2671.0,0.37428]
[1727560518043,3.31219193,2671.1,2670.9,0.7449]
[1727560518938,0.37428,2671.1,2670.9,0.7449]
[1727560522845,6.14571193,2671.2,2671.1,0.37428]
[1727560523036,3.2078,2671.2,2671.1,0.37428]
[1727560525037,3.70207193,2671.3,2671.1,0.37428]
[1727560525234,3.2078,2671.2,2671.1,0.37428]
[1727560529745,3.70207193,2671.3,2671.1,0.37428]
[1727560529944,3.2078,2671.2,2671.1,0.37428]
[1727560531053,3.70207193,2671.3,2671.1,0.37428]
[1727560531351,3.2078,2671.2,2671.1,0.37428]
[1727560532754,3.58206,2671.2,2671.1,0.37428]
[1727560533450,3.2078,2671.2,2671.1,0.37428]
[1727560534453,0.37426,2671.2,2671.1,0.37428]
[1727560534753,3.58206,2671.2,2671.1,0.37428]
[1727560536547,0.37426,2671.2,2671.1,0.37428]
[1727560536850,3.2078,2671.2,2671.1,0.37428]
[1727560537246,3.58206,2671.2,2671.0,0.37428]
[1727560537458,2.93801743,2671.1,2671.0,0.37428]
[1727560541161,3.58206,2671.2,2671.1,0.37428]
[1727560541662,0.37426,2671.2,2671.1,0.37428]
[1727560541957,3.58206,2671.2,2671.1,0.37428]
[1727560542848,3.58206,2671.2,2671.0,0.37428]
[1727560543055,3.58206,2671.2,2671.1,0.37428]
[1727560543853,3.58206,2671.2,2671.0,0.37428]
[1727560544659,3.58206,2671.2,2671.1,0.37428]
[1727560545254,3.2078,2671.2,2671.1,0.37428]
[1727560546060,3.58206,2671.2,2671.1,0.37428]
[1727560547061,0.37426,2671.2,2671.1,0.37428]
[1727560547254,3.58206,2671.2,2671.1,0.37428]
[1727560548766,3.58206,2671.2,2671.0,0.37428]
[1727560549360,0.37426,2671.2,2671.0,0.37428]
[1727560549565,3.58206,2671.2,2671.0,0.37428]
[1727560549756,3.58206,2671.2,2671.1,0.37428]
[1727560550170,0.37426,2671.2,2671.1,0.37428]
[1727560550364,3.58206,2671.2,2671.1,0.37428]
[1727560551066,0.37426,2671.2,2671.1,0.37428]
[1727560551265,3.58206,2671.2,2671.1,0.37428]
[1727560551665,3.2078,2671.2,2671.1,0.37428]
[1727560558371,3.2078,2671.2,2671.1,1.72428]
[1727560558578,0.8019,2671.4,2671.1,1.35]
[1727560558777,0.8019,2671.4,2671.3,0.37425]
[1727560558976,0.8019,2671.4,2671.3,1.72425]
[1727560562179,3.24876715,2671.4,2671.3,1.72425]
[1727560563471,3.24876715,2671.4,2671.3,1.35]
[1727560564282,0.8019,2671.4,2671.3,1.35]
[1727560564580,0.8019,2671.4,2671.3,1.72425]
[1727560565982,0.8019,2671.4,2671.3,1.35]
[1727560566170,0.8019,2671.4,2671.3,1.72425]
[1727560579285,2.75756868,2671.4,2671.3,1.72425]
[1727560579985,3.13180868,2671.4,2671.2,1.35]
[1727560581286,3.13180868,2671.4,2671.2,1.72426]
[1727560582089,1.95566868,2671.3,2671.2,1.72426]
[1727560583093,1.95566868,2671.3,2671.0,1.2077]
[1727560583280,1.95566868,2671.3,2671.2,1.72426]
[1727560586395,2.44501232,2671.3,2671.2,1.72426]
[1727560589890,2.44501232,2671.3,2671.2,1.35]
[1727560590199,0.37426,2671.3,2671.0,1.72428]
[1727560590488,2.44596635,2671.2,2671.0,1.72428]
[1727560590684,0.7711,2671.1,2671.0,1.72428]
[1727560590885,3.21706635,2671.1,2671.0,1.72428]
[1727560592190,0.7711,2671.1,2671.0,0.37429]
[1727560592492,0.7711,2671.1,2670.9,1.7243]
[1727560592690,2.44571952,2671.0,2670.9,1.7243]
[1727560594092,6.18971952,2671.0,2670.9,1.7243]
[1727560594594,5.70072615,2671.0,2670.9,1.7243]
[1727560600298,1.95672615,2671.0,2670.9,1.7243]
[1727560600689,2.34882615,2671.0,2670.9,1.7243]
[1727560603492,0.3921,2671.0,2670.9,1.7243]
[1727560604099,2.34900057,2671.0,2670.9,1.7243]
[1727560604399,0.3921,2671.0,2670.9,1.7243]
[1727560609396,2.34880574,2671.0,2670.9,1.7243]
[1727560616602,2.83781952,2671.0,2670.9,1.7243]
[1727560621509,2.83781952,2671.0,2670.9,0.3743]
[1727560622200,2.83781952,2671.0,2670.8,0.37431]
[1727560622404,2.44571952,2671.0,2670.7,1.35]
[1727560622602,2.84541952,2670.9,2670.8,0.37432]
[1727560623805,0.3997,2670.9,2670.8,0.37432]
[1727560624601,2.35661888,2670.9,2670.8,0.37432]
[1727560628302,1.95691888,2670.9,2670.8,0.37432]
[1727560631714,2.44571952,2670.9,2670.8,0.37432]
[1727560635813,8.66171952,2670.9,2670.8,0.37432]
[1727560636114,2.44571952,2670.9,2670.8,0.37432]
[1727560639716,2.44571952,2671.0,2670.9,0.37431]
[1727560639917,2.44571952,2671.0,2670.9,0.76151]
[1727560646718,2.44571952,2671.0,2670.9,1.55881]
[1727560646919,3.58711952,2671.1,2671.0,0.37429]
[1727560647822,1.1414,2671.1,2671.0,0.37429]
[1727560648522,1.1414,2671.1,2670.9,1.36921349]
[1727560648726,2.45227262,2671.0,2670.9,1.74352349]
[1727560649115,2.45227262,2671.0,2670.9,0.37431]
[1727560651623,1.1414,2671.1,2671.0,0.37429]
[1727560652417,1.51568,2671.1,2670.9,0.3743]
[1727560652823,2.4528668,2671.0,2670.9,0.3743]
[1727560653832,1.1414,2671.1,2671.0,0.37429]
[1727560659525,1.51568,2671.1,2671.0,0.37429]
[1727560659830,1.1414,2671.1,2671.0,0.37429]
[1727560669837,1.51568,2671.1,2671.0,0.37429]
[1727560670249,0.37432,2670.8,2670.7,1.75464349]
[1727560670449,2.82797243,2670.8,2670.7,0.3983]
[1727560670651,0.37432,2670.8,2670.7,0.3983]
[1727560672343,0.37432,2670.8,2670.7,0.77264]
[1727560673041,0.37432,2670.8,2670.7,0.3983]
[1727560674354,2.82691036,2670.8,2670.7,0.3983]
[1727560675156,2.45259036,2670.8,2670.7,0.77264]
[1727560675354,2.82691036,2670.8,2670.7,0.77264]
[1727560675554,2.82669036,2670.8,2670.7,0.77264]
[1727560675757,3.20101036,2670.8,2670.7,0.77264]
[1727560676158,2.82669036,2670.8,2670.7,0.77264]
[1727560683450,0.3741,2670.8,2670.7,0.77264]
[1727560685658,2.45259036,2670.9,2670.8,0.37432]
[1727560691263,2.45259036,2671.0,2670.9,0.37431]
[1727560691464,2.45259036,2671.0,2670.9,4.11831]
[1727560691659,2.45259036,2671.1,2671.0,0.37429]
[1727560691867,2.45259036,2671.1,2671.0,0.78249]
[1727560692066,3.2078,2671.3,2671.0,0.78249]
[1727560692067,2.45259036,2671.2,2671.1,0.37428]
[1727560692466,2.45259036,2671.2,2671.1,4.11828]
[1727560694173,3.2078,2671.3,2671.2,0.37426]
[1727560694870,3.2078,2671.3,2671.2,4.11746]
[1727560695069,3.2078,2671.3,2671.2,0.37426]
[1727560695264,3.2078,2671.3,2671.2,4.11746]
[1727560696070,3.2078,2671.3,2671.2,0.37426]
[1727560696870,2.93624059,2671.5,2671.4,0.37424]
[1727560697181,1.96344718,2671.5,2671.4,6.0170713]
[1727560697481,1.96344718,2671.6,2671.5,0.37422]
[1727560697681,1.96344718,2671.6,2671.5,4.11742]
[1727560698371,1.96344718,2671.7,2671.6,0.37421]
[1727560700382,1.96344718,2671.7,2671.6,4.11741]
[1727560700678,2.70789718,2672.0,2671.7,0.37419]
[1727560700872,1.96344718,2671.9,2671.8,0.7546]
[1727560701375,2.70789718,2672.0,2671.8,1.12878]
[1727560702975,1.96344718,2672.0,2671.9,0.37417]
[1727560703178,2.33759718,2672.1,2671.9,0.37417]
[1727560703374,0.37415,2672.1,2671.9,0.37417]
[1727560703580,0.37416,2672.0,2671.8,1.12877]
[1727560703780,0.37415,2672.1,2671.9,0.37416]
[1727560704078,2.33759718,2672.1,2671.9,0.37416]
[1727560704279,0.37415,2672.0,2671.9,0.37416]
[1727560704471,0.37415,2672.0,2671.8,1.12877]
[1727560704673,0.37415,2672.0,2671.9,0.37416]
[1727560704982,0.37415,2672.1,2671.9,0.37416]
[1727560705169,0.37415,2672.0,2671.9,0.37416]
[1727560705372,0.37415,2672.0,2671.8,1.12877]
[1727560706780,0.37415,2672.1,2671.9,0.37416]
[1727560707181,2.33759718,2672.1,2671.9,0.37416]
[1727560709389,0.37415,2672.1,2671.9,0.37416]
[1727560712088,3.45898718,2672.2,2671.8,1.1485]
[1727560712286,0.37414,2672.1,2671.9,0.37417]
[1727560712492,0.37414,2672.1,2671.9,4.42273073]
[1727560716387,0.37415,2672.0,2671.9,4.04856073]
[1727560719698,3.58195,2672.1,2671.9,4.42273073]
[1727560721201,0.37415,2672.1,2671.9,4.42273073]
[1727560721896,0.37415,2672.0,2671.9,4.42273073]
[1727560723300,0.37415,2672.0,2671.9,4.04856073]
[1727560723999,0.37417,2671.9,2671.7,0.37419]
[1727560724302,0.8166,2671.8,2671.7,0.37419]
[1727560726802,0.8166,2671.8,2671.5,1.9811]
[1727560727006,0.8166,2671.8,2671.7,0.37419]
[1727560728198,0.8166,2671.8,2671.6,4.6256813]
[1727560730095,0.8166,2671.8,2671.7,0.37419]
[1727560741809,2.77901318,2671.8,2671.7,0.37419]
[1727560742312,0.8166,2671.8,2671.7,0.37419]
[1727560742609,0.8166,2671.8,2671.6,4.6256813]
[1727560742809,0.8166,2671.8,2671.7,0.37419]
[1727560746112,0.3736,2671.9,2671.8,0.37418]
[1727560754618,3.66575977,2672.1,2671.9,0.37416]
[1727560754812,3.71115977,2672.1,2671.9,0.37416]
[1727560755007,3.33701977,2672.1,2671.6,5.23019071]
[1727560755208,2.45586489,2671.8,2671.7,2.70289941]
[1727560755418,2.45586489,2671.9,2671.8,0.37418]
[1727560755713,2.45586489,2672.0,2671.9,0.37417]
[1727560755920,2.45586489,2672.0,2671.9,1.72417]
[1727560756113,2.45586489,2672.0,2671.9,8.95125055]
[1727560756421,2.45586489,2672.1,2672.0,0.37415]
[1727560756722,3.2078,2672.2,2672.1,3.99498148]
[1727560757119,3.2078,2672.2,2672.1,0.76994]
[1727560758622,3.6012,2672.3,2672.1,0.76994]
[1727560759417,2.45440289,2672.2,2672.1,0.76994]
[1727560760229,6.54481977,2672.3,2672.1,0.76994]
[1727560760522,3.6012,2672.3,2672.1,0.76994]
[1727560761123,6.54481977,2672.3,2672.1,0.76994]
[1727560761922,3.6012,2672.3,2672.1,0.76994]
[1727560762120,3.97531,2672.3,2672.1,0.76994]
[1727560765326,2.45346246,2672.2,2672.1,0.76994]
[1727560767428,0.37412,2672.2,2672.1,0.76994]
[1727560767623,6.42878246,2672.3,2672.1,0.76994]
[1727560768128,3.22098246,2672.3,2672.1,0.76994]
[1727560768329,1.96211519,2672.2,2672.1,0.76994]
[1727560771620,2.33623519,2672.2,2672.1,0.76994]
[1727560772934,1.96211519,2672.2,2672.1,0.76994]
[1727560774034,2.33623519,2672.2,2672.1,0.76994]
[1727560775328,0.37412,2672.2,2672.1,0.76994]
[1727560777438,2.82758246,2672.2,2672.1,0.76994]
[1727560777932,0.37412,2672.2,2672.1,0.76994]
[1727560778527,2.82758246,2672.2,2672.1,0.76994]
[1727560779130,0.37412,2672.2,2672.1,0.76994]
[1727560779632,2.82758246,2672.2,2672.1,0.76994]
[1727560779939,0.37412,2672.2,2672.1,0.76994]
[1727560780132,2.82758246,2672.2,2672.1,0.76994]
[1727560782437,2.33571825,2672.2,2672.1,0.76994]
[1727560787143,2.33571825,2672.2,2672.1,0.3958]
[1727560788447,2.33571825,2672.2,2672.1,0.76994]
[1727560789039,2.33571825,2672.2,2672.1,0.37414]
[1727560789544,0.37412,2672.2,2672.1,0.37414]
[1727560791739,2.82758246,2672.2,2672.1,0.37414]
[1727560793036,2.45346246,2672.2,2672.1,0.37414]
[1727560794440,2.82758246,2672.2,2672.1,0.37414]
[1727560795943,2.82758246,2672.2,2672.0,0.37414]
[1727560796147,1.96263731,2672.1,2672.0,0.37414]
[1727560796339,1.96263731,2672.1,2672.0,4.455627]
[1727560796647,2.82759246,2672.2,2672.0,4.455627]
[1727560797643,1.96284206,2672.1,2672.0,4.455627]
[1727560799235,1.96284206,2672.1,2672.0,5.43433641]
[1727560800438,1.96284206,2672.1,2672.0,6.25733641]
[1727560801644,2.45346246,2672.2,2672.0,5.06019641]
[1727560801947,2.45346246,2672.2,2672.1,0.37414]
[1727560802132,2.45346246,2672.2,2672.1,0.76294]
[1727560802738,2.45346246,2672.2,2672.1,1.74164941]
[1727560803140,3.22097246,2672.3,2672.1,1.74164941]
[1727560803345,6.56998246,2672.2,2672.1,0.97870941]
[1727560803538,6.56998246,2672.2,2671.8,0.97870941]
[1727560803539,0.93542,2671.9,2671.8,0.97870941]
[1727560803734,0.93542,2671.9,2671.6,1.46806412]
[1727560803735,0.37418,2671.8,2671.7,0.97870941]
[1727560803940,1.1766,2671.8,2671.5,0.97870941]
[1727560804138,2.83041647,2671.7,2671.5,0.97870941]
[1727560804344,2.33812744,2671.6,2671.4,1.35450941]
[1727560804642,1.96391744,2671.5,2671.4,3.07874941]
[1727560804842,2.34471744,2671.5,2671.4,3.07874941]
[1727560805036,0.3808,2671.5,2671.4,3.07874941]
[1727560805241,2.34471744,2671.5,2671.4,3.07874941]
[1727560805544,0.3808,2671.5,2671.4,3.07874941]
[1727560806247,1.96391744,2671.6,2671.5,0.37422]
[1727560806447,2.34781744,2671.7,2671.6,0.37421]
[1727560806642,2.34781744,2671.7,2671.6,1.72421]
[1727560807745,0.3839,2671.7,2671.6,5.97278313]
[1727560807947,1.96391744,2671.7,2671.6,5.97278313]
[1727560808248,1.96247147,2671.8,2671.7,0.37419]
[1727560808451,1.96247147,2671.8,2671.7,1.55789]
[1727560809635,1.96247147,2671.8,2671.7,2.90789]
[1727560809840,2.45621647,2671.9,2671.7,2.90789]
[1727560809841,1.96247147,2671.9,2671.8,0.37418]
[1727560810438,0.3839,2672.0,2671.9,0.37417]
[1727560810635,2.34570947,2672.0,2671.9,0.37417]
[1727560810836,1.96180947,2672.0,2671.9,0.37417]
[1727560811050,1.96180947,2672.0,2671.9,8.19857076]
[1727560811346,0.348,2672.2,2672.1,0.37414]
[1727560811550,2.36620947,2672.3,2672.1,0.37414]
[1727560811748,1.96180947,2672.2,2672.1,0.37414]
[1727560813249,3.23472647,2672.3,2672.1,0.37414]
[1727560813449,5.66401647,2672.2,2671.9,0.822]
[1727560813653,0.4058,2672.1,2672.0,0.37415]
[1727560814752,2.36754796,2672.1,2672.0,0.37415]
[1727560819755,0.4058,2672.1,2672.0,0.37415]
[1727560822749,2.36614796,2672.3,2672.2,0.37412]
[1727560822750,1.96174796,2672.3,2672.2,0.37412]
[1727560822950,2.30974796,2672.5,2672.4,0.3741]
[1727560823145,1.96174796,2672.6,2672.5,0.37408]
[1727560825449,3.14444796,2672.7,2672.6,0.37407]
[1727560826251,1.1827,2672.7,2672.4,1.35]
[1727560826452,3.14326707,2672.7,2672.5,0.37407]
[1727560826653,3.14326707,2672.7,2672.6,0.37407]
[1727560827758,3.63891647,2672.7,2672.6,0.37407]
[1727560830344,3.63891647,2672.7,2672.4,1.35]
[1727560830559,1.95962359,2672.6,2672.5,0.37408]
[1727560834556,1.1827,2672.7,2672.6,0.37407]
[1727560840460,1.55675,2672.7,2672.5,0.37407]
[1727560840755,1.1827,2672.7,2672.6,0.37407]
[1727560842963,3.14159137,2672.7,2672.6,0.37407]
[1727560847064,3.14159137,2672.7,2672.6,1.72407]
[1727560849768,1.1827,2672.7,2672.6,1.72407]
[1727560851466,0.3866,2672.7,2672.6,1.72407]
[1727560852469,2.34549137,2672.7,2672.6,1.72407]
[1727560856678,4.01544647,2672.9,2672.7,0.37405]
[1727560856879,4.01544647,2672.9,2672.6,1.72406]
[1727560857075,1.96076254,2672.7,2672.6,1.72406]
[1727560861776,1.96076254,2672.7,2672.6,1.35]
[1727560861977,1.96076254,2672.7,2672.6,1.72407]
[1727560863277,1.96076254,2672.7,2672.6,1.35]
[1727560863479,0.37406,2672.7,2672.5,1.16008]
[1727560863678,2.33693422,2672.6,2672.5,1.16008]
[1727560864081,2.33693422,2672.6,2672.5,5.11320632]
[1727560864981,2.83111647,2672.6,2672.5,5.11320632]
[1727560867477,2.82883233,2672.6,2672.5,5.11320632]
[1727560867678,0.3749,2672.6,2672.5,5.11320632]
[1727560869182,6.96591977,2672.9,2672.7,0.37405]
[1727560869488,0.3906,2672.8,2672.7,1.35]
[1727560869682,0.3906,2672.8,2672.7,1.72405]
[1727560870084,0.3906,2672.8,2672.7,1.35]
[1727560870582,0.3906,2672.8,2672.7,1.72405]
[1727560874982,9.15661977,2673.1,2672.7,1.35]
[1727560875190,0.76432,2673.0,2672.8,0.3828]
[1727560876981,3.70793977,2673.0,2672.8,0.3828]
[1727560877282,0.76432,2673.0,2672.8,0.3828]
[1727560878087,0.3903,2673.0,2672.8,0.75683]
[1727560878289,0.76431,2673.0,2672.9,0.7891]
[1727560878785,4.50511,2673.0,2672.9,0.3877]
[1727560879698,0.37403,2672.9,2672.8,0.3828]
[1727560880086,3.31764977,2672.9,2672.8,0.3828]
[1727560882290,3.70654977,2672.9,2672.8,0.3828]
[1727560884892,3.33251977,2672.9,2672.8,0.75684]
[1727560885090,2.94361977,2672.9,2672.8,0.75684]
[1727560885288,3.33391977,2673.0,2672.9,0.37403]
[1727560885485,3.33391977,2673.0,2672.9,1.72403]
[1727560885890,3.33391977,2673.0,2672.9,2.09763]
[1727560886394,2.94361977,2673.1,2673.0,0.37401]
[1727560886587,3.33051977,2673.2,2673.1,0.374]
[1727560887097,0.3869,2673.2,2673.1,0.374]
[1727560887897,2.83996696,2673.2,2673.1,0.374]
[1727560889493,0.3869,2673.2,2673.1,0.374]
[1727560891201,2.34798576,2673.2,2673.1,0.374]
[1727560892601,1.96108576,2673.2,2673.1,0.374]
[1727560896199,1.96108576,2673.2,2673.1,4.67050016]
[1727560897097,2.35568576,2673.4,2673.1,11.24510016]
[1727560897297,2.35568576,2673.4,2673.3,1.72397]
[1727560898206,2.35568576,2673.4,2673.3,1.35]
[1727560898409,2.72964576,2673.4,2673.3,1.35]
[1727560900198,1.96108576,2673.4,2673.3,1.72397]
[1727560900800,3.2078,2673.4,2673.3,1.72397]
[1727560901002,3.2078,2673.4,2673.3,1.35]
[1727560901205,1.95937135,2673.4,2673.3,1.35]
[1727560901709,1.95937135,2673.4,2673.3,1.72397]
[1727560902207,2.45306696,2673.4,2673.3,1.72397]
[1727560903906,2.45306696,2673.5,2673.3,1.72397]
[1727560904108,2.45306696,2673.5,2673.4,1.35]
[1727560906213,2.45306696,2673.5,2673.4,1.72396]
[1727560909215,2.84796696,2673.6,2673.4,1.72396]
[1727560909520,2.45306696,2673.5,2673.4,1.72396]
[1727560910312,0.3949,2673.6,2673.4,1.72396]
[1727560910313,2.35302793,2673.6,2673.4,1.72396]
[1727560910817,2.35302793,2673.6,2673.5,0.37394]
[1727560912703,2.35302793,2673.6,2673.4,1.35]
[1727560913118,2.35302793,2673.6,2673.4,1.72395]
[1727560913317,2.35302793,2673.6,2673.5,0.37394]
[1727560913917,0.3949,2673.6,2673.5,0.37394]
[1727560917823,2.35274578,2673.6,2673.5,0.37394]
[1727560918018,2.35278677,2673.6,2673.5,0.37394]
[1727560918324,2.35280229,2673.6,2673.5,0.37394]
[1727560918524,2.35282414,2673.6,2673.5,0.37394]
[1727560918716,0.3949,2673.6,2673.5,0.37394]
[1727560919116,2.35283153,2673.6,2673.5,0.37394]
[1727560920326,0.3949,2673.6,2673.5,0.37394]
[1727560920631,0.348,2673.8,2673.5,14.6579677]
[1727560920920,2.67502934,2674.0,2673.9,0.37389]
[1727560921124,0.3693,2674.0,2673.9,2.54289]
[1727560921328,0.3693,2674.0,2673.9,10.19735437]
[1727560921722,2.30572934,2674.3,2674.2,0.37385]
[1727560922024,0.3705,2674.3,2674.2,4.36313193]
[1727560922411,3.09772934,2674.5,2674.4,0.37382]
[1727560922615,0.4014,2674.5,2674.4,1.72382]
[1727560922816,1.95772934,2674.7,2674.4,6.15828193]
[1727560923017,1.95772934,2674.7,2674.6,1.72379]
[1727560923221,1.95772934,2674.7,2674.6,1.35]
[1727560923425,2.71882934,2674.8,2674.6,2.54279]
[1727560923625,2.71882934,2674.8,2674.6,6.84878967]
[1727560923826,0.7611,2674.8,2674.6,6.84878967]
[1727560924224,0.7611,2674.8,2674.7,0.37378]
[1727560924721,0.7611,2674.8,2674.6,6.84878967]
[1727560925823,0.7611,2674.8,2674.7,0.37378]
[1727560927725,0.3705,2674.8,2674.7,0.37378]
[1727560927932,0.3705,2674.8,2674.7,4.81829012]
[1727560931024,0.3705,2674.8,2674.7,5.63729012]
[1727560932437,0.3705,2674.8,2674.7,6.02269012]
[1727560933432,0.7276,2675.0,2674.9,0.37375]
[1727560933635,0.7701,2675.0,2674.9,1.72375]
[1727560934440,0.3905,2675.0,2674.9,5.89991022]
[1727560934932,0.3905,2675.0,2674.9,6.71891022]
[1727560936226,0.348,2675.3,2674.9,6.34516022]
[1727560936432,0.3733,2675.2,2675.0,0.37372]
[1727560936736,0.3733,2675.2,2675.1,5.94246343]
[1727560937030,0.3733,2675.2,2675.1,1.72372]
[1727560937232,0.3733,2675.2,2675.1,5.46212]
[1727560937435,0.3733,2675.2,2675.1,9.71873705]
[1727560938027,0.3733,2675.2,2675.1,5.98033705]
[1727560938827,0.3733,2675.2,2675.1,5.60661705]
[1727560939035,0.74701,2675.2,2675.1,5.60661705]
[1727560939242,0.74701,2675.2,2675.1,1.35]
[1727560939938,0.3733,2675.2,2675.1,1.35]
[1727560940128,0.74701,2675.2,2675.1,1.35]
[1727560940737,0.3733,2675.2,2675.1,1.72372]
[1727560941329,0.74701,2675.2,2675.1,1.35]
[1727560941530,0.3733,2675.2,2675.1,1.72372]
[1727560942437,0.74701,2675.2,2675.1,1.35]
[1727560942742,0.3733,2675.2,2675.1,1.72372]
[1727560943442,0.7591,2675.4,2675.1,9.36174135]
[1727560943649,0.7764,2675.4,2675.3,1.72369]
[1727560943837,0.4038,2675.4,2675.3,1.72369]
[1727560944037,0.4038,2675.4,2675.3,5.99703135]
[1727560944235,3.2078,2675.5,2675.4,0.37368]
[1727560944640,3.2078,2675.5,2675.4,8.13794089]
[1727560946040,3.2078,2675.5,2675.4,4.40034089]
[1727560946342,0.77744,2675.7,2675.4,7.76426089]
[1727560946544,0.77744,2675.7,2675.6,0.37365]
[1727560946545,0.4038,2675.7,2675.6,0.37365]
[1727560946841,0.77744,2675.7,2675.5,3.72545]
[1727560947041,0.4038,2675.7,2675.6,0.37365]
[1727560947238,0.4038,2675.7,2675.6,5.46440187]
[1727560950540,0.4038,2675.7,2675.6,4.64640187]
[1727560955342,0.75442,2675.9,2675.6,8.38400187]
[1727560955647,0.348,2676.1,2676.0,0.37359]
[1727560955840,0.748,2676.3,2676.2,0.37357]
[1727560956039,0.748,2676.3,2676.2,1.72357]
[1727560956450,1.12155,2676.3,2676.2,1.35]
[1727560956647,13.6926,2676.3,2675.6,0.818]
[1727560956850,0.37364,2675.7,2675.5,0.37366]
[1727560957147,3.2078,2675.9,2675.5,4.12584174]
[1727560957148,4.74146,2675.6,2675.5,4.12584174]
[1727560957342,4.74146,2675.6,2675.5,1.35]
[1727560957343,4.3678,2675.6,2675.5,1.35]
[1727560958450,4.74145,2675.6,2675.5,1.35]
[1727560958643,0.37369,2675.4,2675.3,0.818]
[1727560958845,0.37369,2675.4,2675.3,1.35]
[1727560960952,0.37374,2675.0,2674.8,3.2078]
[1727560961144,4.3592,2674.9,2674.5,0.3733]
[1727560961343,4.73295,2674.9,2674.8,1.35]
[1727560961751,4.3592,2674.9,2674.8,1.35]
[1727560962147,1.1514,2674.9,2674.8,1.35]
[1727560962348,1.52515,2674.9,2674.8,1.35]
[1727560962550,1.1514,2674.9,2674.8,1.35]
[1727560962856,1.52515,2674.9,2674.8,1.35]
[1727560963061,4.3592,2674.9,2674.8,1.35]
[1727560963354,3.73530696,2675.3,2674.8,5.24548022]
[1727560963355,2.30572934,2675.3,2674.8,5.24548022]
[1727560963548,0.7827,2675.2,2674.9,0.8049]
[1727560963754,0.3834,2675.2,2674.9,0.8049]
[1727560963955,0.3834,2675.2,2675.0,3.89548022]
[1727560964154,0.3834,2675.2,2675.1,2.92]
[1727560965250,0.37372,2675.1,2674.9,3.3216]
[1727560965455,0.75342,2675.1,2674.9,3.3216]
[1727560965954,0.4077,2675.0,2674.9,2.92]
[1727560966547,0.4077,2675.0,2674.7,2.92]
[1727560966548,0.37376,2674.8,2674.7,2.92]
[1727560967159,5.16552934,2674.9,2674.7,2.92]
[1727560967352,5.53927934,2674.9,2674.7,2.92]
[1727560967661,5.53927934,2674.9,2674.3,0.7804]
[1727560967662,6.09992934,2674.9,2674.3,0.7804]
[1727560967964,1.34206,2675.0,2674.3,2.92]
[1727560967965,1.95772934,2674.5,2674.3,2.92]
[1727560968262,0.75412,2674.4,2674.3,2.92]
[1727560968463,1.15332,2674.4,2674.3,2.92]
[1727560968855,0.7795,2674.4,2674.3,2.92]
[1727560970060,1.15332,2674.4,2674.3,2.92]
[1727560970262,0.7795,2674.4,2674.3,2.92]
[1727560970457,1.15332,2674.4,2674.3,2.92]
[1727560971258,1.95772934,2674.6,2674.3,16.94982817]
[1727560971454,1.95772934,2674.9,2674.6,0.37378]
[1727560971657,1.95772934,2675.0,2674.8,2.92]
[1727560972062,1.95772934,2675.0,2674.9,4.29062817]
[1727560972460,6.43236696,2675.2,2674.9,4.29062817]
[1727560972461,6.31073934,2675.2,2674.9,4.29062817]
[1727560972758,1.95772934,2675.1,2675.0,2.92]
[1727560973362,5.93702934,2675.2,2675.0,2.92]
[1727560973560,5.93702934,2675.2,2675.0,7.14886521]
[1727560974761,3.5763,2675.2,2675.0,7.14886521]
[1727560974964,3.5763,2675.2,2675.0,7.52259521]
[1727560975354,1.95772934,2675.3,2675.2,0.37371]
[1727560975565,2.45306696,2675.4,2675.3,0.37369]
[1727560975566,1.95772934,2675.4,2675.3,0.37369]
[1727560975762,0.4047,2675.7,2675.5,0.37366]
[1727560975763,1.95772934,2675.7,2675.5,0.37366]
[1727560975959,1.95772934,2675.9,2675.6,3.7376]
[1727560976161,0.3736,2676.0,2675.8,2.92]
[1727560976162,1.95772934,2676.0,2675.8,2.92]
[1727560976453,1.95772934,2676.0,2675.9,3.94142417]
[1727560977357,2.33130934,2676.1,2675.9,3.94142417]
[1727560977553,1.95772934,2676.1,2675.9,3.94142417]
[1727560977756,1.95772934,2676.1,2675.8,2.92]
[1727560977757,0.37359,2676.0,2675.6,3.737]
[1727560977956,0.37361,2675.9,2675.6,3.737]
[1727560978156,0.37361,2675.9,2675.8,3.91147846]
[1727560978461,0.37361,2675.9,2675.6,6.83147846]
[1727560978462,3.58141,2675.9,2675.6,2.92]
[1727560978659,3.2078,2675.9,2675.6,2.92]
[1727560978856,3.2078,2675.9,2675.7,4.27032926]
[1727560979164,3.585,2675.9,2675.7,4.27032926]
[1727560979462,6.41167696,2675.9,2675.7,2.92]
[1727560979659,1.95292288,2675.8,2675.7,2.92]
[1727560979851,5.91153288,2675.9,2675.7,2.92]
[1727560980160,0.37362,2675.8,2675.7,2.92]